[Event "*** Titled Tuesday 3|2 Blitz (Late)"]
[Site "Chess.com"]
[Date "2017.01.03"]
[Round "6"]
[White "Kawhi_Leonard2"]
[Black "norwaytoadog"]
[Result "0-1"]
[WhiteElo "2196"]
[BlackElo "1969"]
[TimeControl "180+2"]
[EndTime "18:12:46 PST"]
[Termination "norwaytoadog won on time"]

1. e4 {[%clk 0:03:02]} 1... e5 {[%clk 0:03:00.6]} 2. Nf3 {[%clk 0:03:02.9]} 2...
Nc6 {[%clk 0:03:01.3]} 3. Bb5 {[%clk 0:03:03.5]} 3... a6 {[%clk 0:03:02.2]} 4.
Bxc6 {[%clk 0:03:04.3]} 4... dxc6 {[%clk 0:03:02.2]} 5. O-O {[%clk 0:03:05.9]}
5... Ne7 {[%clk 0:03:01.8]} 6. Nxe5 {[%clk 0:02:56.2]} 6... Qd4 {[%clk 0:03:01]}
7. Nf3 {[%clk 0:02:52.5]} 7... Qxe4 {[%clk 0:03:00.6]} 8. Nc3 {[%clk 0:02:50.1]}
8... Qg4 {[%clk 0:02:54.3]} 9. Re1 {[%clk 0:02:48.3]} 9... Be6 {[%clk
0:02:52.4]} 10. d3 {[%clk 0:02:42.2]} 10... O-O-O {[%clk 0:02:45.2]} 11. Ng5
{[%clk 0:02:35]} 11... Qxd1 {[%clk 0:02:41.6]} 12. Nxd1 {[%clk 0:02:28.3]} 12...
Bd5 {[%clk 0:02:39.7]} 13. Nc3 {[%clk 0:02:14.6]} 13... f6 {[%clk 0:02:25.3]}
14. Nxd5 {[%clk 0:02:10.7]} 14... Rxd5 {[%clk 0:02:20.8]} 15. Ne6 {[%clk
0:02:04.5]} 15... Nf5 {[%clk 0:01:59.3]} 16. Nxf8 {[%clk 0:01:56.6]} 16... Rxf8
{[%clk 0:01:59.3]} 17. Bd2 {[%clk 0:01:48.2]} 17... Kd7 {[%clk 0:01:52.7]} 18.
Bc3 {[%clk 0:01:35.2]} 18... c5 {[%clk 0:01:48.2]} 19. Re4 {[%clk 0:01:34.7]}
19... Nd6 {[%clk 0:01:46.8]} 20. Rh4 {[%clk 0:01:32.3]} 20... h5 {[%clk
0:01:44.5]} 21. b3 {[%clk 0:01:24]} 21... Re8 {[%clk 0:01:38]} 22. Re1 {[%clk
0:01:23.8]} 22... Rxe1+ {[%clk 0:01:36.5]} 23. Bxe1 {[%clk 0:01:24.1]} 23... Re5
{[%clk 0:01:30.1]} 24. Kf1 {[%clk 0:01:24.3]} 24... Nf5 {[%clk 0:01:23.8]} 25.
Re4 {[%clk 0:01:16.9]} 25... Rd5 {[%clk 0:01:11.3]} 26. Ke2 {[%clk 0:01:06]}
26... Nd4+ {[%clk 0:01:07.3]} 27. Kd1 {[%clk 0:01:06.9]} 27... g5 {[%clk
0:00:57.5]} 28. h3 {[%clk 0:00:59.3]} 28... f5 {[%clk 0:00:57.3]} 29. Re3 {[%clk
0:00:55.3]} 29... f4 {[%clk 0:00:41.3]} 30. Re4 {[%clk 0:00:56]} 30... Ne6
{[%clk 0:00:29.2]} 31. Bc3 {[%clk 0:00:53.3]} 31... b5 {[%clk 0:00:21.4]} 32.
Ke2 {[%clk 0:00:45.5]} 32... b4 {[%clk 0:00:19.8]} 33. Bf6 {[%clk 0:00:42.9]}
33... Rf5 {[%clk 0:00:18.5]} 34. Bb2 {[%clk 0:00:39.1]} 34... f3+ {[%clk
0:00:17.4]} 35. gxf3 {[%clk 0:00:37.5]} 35... Nf4+ {[%clk 0:00:18]} 36. Kf1
{[%clk 0:00:22.5]} 36... Nxh3 {[%clk 0:00:18.7]} 37. Kg2 {[%clk 0:00:23.3]}
37... Nf4+ {[%clk 0:00:19.1]} 38. Kg3 {[%clk 0:00:22.7]} 38... Kd6 {[%clk
0:00:18.4]} 39. Bc1 {[%clk 0:00:22.3]} 39... Nd5 {[%clk 0:00:15]} 40. Bd2 {[%clk
0:00:21.6]} 40... a5 {[%clk 0:00:14.6]} 41. Re8 {[%clk 0:00:20.2]} 41... Nf6
{[%clk 0:00:14.9]} 42. Ra8 {[%clk 0:00:16.4]} 42... h4+ {[%clk 0:00:15.4]} 43.
Kg2 {[%clk 0:00:16.7]} 43... g4 {[%clk 0:00:14.8]} 44. fxg4 {[%clk 0:00:13.8]}
44... Nxg4 {[%clk 0:00:15.5]} 45. f3 {[%clk 0:00:14.8]} 45... Ne5 {[%clk
0:00:16.1]} 46. Rxa5 {[%clk 0:00:14]} 46... Nxf3 {[%clk 0:00:15.1]} 47. Be3
{[%clk 0:00:13.8]} 47... Ne1+ {[%clk 0:00:13]} 48. Kg1 {[%clk 0:00:13.1]} 48...
Nxc2 {[%clk 0:00:12.4]} 49. Bf2 {[%clk 0:00:11.9]} 49... h3 {[%clk 0:00:13.2]}
50. Ra6+ {[%clk 0:00:12.1]} 50... Kd5 {[%clk 0:00:13.2]} 51. Rh6 {[%clk
0:00:11.2]} 51... Rf3 {[%clk 0:00:11.4]} 52. Rh5+ {[%clk 0:00:09.2]} 52... Ke6
{[%clk 0:00:12]} 53. Rxc5 {[%clk 0:00:08.8]} 53... h2+ {[%clk 0:00:09.5]} 54.
Kxh2 {[%clk 0:00:09.9]} 54... Rxf2+ {[%clk 0:00:09.8]} 55. Kg3 {[%clk
0:00:11.4]} 55... Rd2 {[%clk 0:00:09.3]} 56. Rxc7 {[%clk 0:00:12.2]} 56... Rxd3+
{[%clk 0:00:10]} 57. Kf2 {[%clk 0:00:10.3]} 57... Rc3 {[%clk 0:00:10.4]} 58.
Rxc3 {[%clk 0:00:05.3]} 58... bxc3 {[%clk 0:00:09.7]} 59. Ke2 {[%clk 0:00:06.8]}
59... Nd4+ {[%clk 0:00:10.1]} 60. Kd1 {[%clk 0:00:06.7]} 60... Kd5 {[%clk
0:00:10.6]} 61. a4 {[%clk 0:00:04.4]} 61... Kc5 {[%clk 0:00:08.3]} 0-1

[Event "*** Titled Tuesday 3|2 Blitz (Late)"]
[Site "Chess.com"]
[Date "2017.01.03"]
[Round "6"]
[White "Goala"]
[Black "PelinGorki"]
[Result "0-1"]
[WhiteElo "2167"]
[BlackElo "2413"]
[TimeControl "180+2"]
[EndTime "18:13:18 PST"]
[Termination "PelinGorki won by resignation"]

1. d4 {[%clk 0:03:02]} 1... Nf6 {[%clk 0:03:00.4]} 2. c4 {[%clk 0:03:03.1]} 2...
e5 {[%clk 0:03:01.4]} 3. dxe5 {[%clk 0:03:03.8]} 3... Ng4 {[%clk 0:03:02.5]} 4.
Bf4 {[%clk 0:03:05.2]} 4... g5 {[%clk 0:03:03.1]} 5. Bg3 {[%clk 0:03:05.2]} 5...
Bg7 {[%clk 0:03:04.6]} 6. Nf3 {[%clk 0:03:05.6]} 6... Nc6 {[%clk 0:03:05.3]} 7.
Nc3 {[%clk 0:03:00.4]} 7... Ngxe5 {[%clk 0:03:06.1]} 8. Nxe5 {[%clk 0:03:01.1]}
8... Nxe5 {[%clk 0:03:08]} 9. e3 {[%clk 0:03:02.7]} 9... O-O {[%clk 0:03:07.5]}
10. h4 {[%clk 0:03:02.6]} 10... g4 {[%clk 0:02:59.3]} 11. h5 {[%clk 0:03:03.7]}
11... d6 {[%clk 0:02:59.6]} 12. Be2 {[%clk 0:02:56.7]} 12... f5 {[%clk
0:03:00.7]} 13. Nd5 {[%clk 0:02:51.4]} 13... Be6 {[%clk 0:03:00.4]} 14. Bh4
{[%clk 0:02:44.5]} 14... Qd7 {[%clk 0:03:01.1]} 15. Rc1 {[%clk 0:02:27.4]} 15...
c6 {[%clk 0:03:01.1]} 16. Nf4 {[%clk 0:02:28.4]} 16... Bf7 {[%clk 0:03:01.4]}
17. b3 {[%clk 0:02:01.6]} 17... Rfe8 {[%clk 0:02:31]} 18. Kf1 {[%clk 0:02:01.5]}
18... Bh6 {[%clk 0:02:30.9]} 19. Bg3 {[%clk 0:02:01]} 19... d5 {[%clk 0:02:25]}
20. cxd5 {[%clk 0:01:44]} 20... cxd5 {[%clk 0:02:26.9]} 21. Qd4 {[%clk
0:01:34.5]} 21... Bg7 {[%clk 0:02:26.3]} 22. h6 {[%clk 0:01:31.2]} 22... Bh8
{[%clk 0:02:27.1]} 23. Rd1 {[%clk 0:01:17.6]} 23... Nc6 {[%clk 0:02:26]} 24. Qd2
{[%clk 0:01:03.7]} 24... d4 {[%clk 0:02:27]} 25. Bb5 {[%clk 0:00:45.4]} 25... a6
{[%clk 0:02:13.4]} 26. Bxc6 {[%clk 0:00:45.6]} 26... Qxc6 {[%clk 0:02:15.3]} 27.
exd4 {[%clk 0:00:47]} 27... Rad8 {[%clk 0:02:17]} 28. d5 {[%clk 0:00:43.4]}
28... Qb5+ {[%clk 0:02:18.3]} 29. Kg1 {[%clk 0:00:43.6]} 29... Be5 {[%clk
0:02:06.3]} 30. Kh2 {[%clk 0:00:33.3]} 30... Qb6 {[%clk 0:01:24.1]} 31. Kg1
{[%clk 0:00:18.6]} 31... Qd6 {[%clk 0:01:18.2]} 32. Qc1 {[%clk 0:00:08.5]} 32...
Rc8 {[%clk 0:01:16.5]} 33. Qd2 {[%clk 0:00:09]} 33... Red8 {[%clk 0:01:14.1]}
34. Ne6 {[%clk 0:00:08.3]} 34... Rd7 {[%clk 0:01:13.1]} 35. Qg5+ {[%clk
0:00:09.1]} 35... Bg6 {[%clk 0:01:13.1]} 36. Bxe5 {[%clk 0:00:06.3]} 36... Qxe5
{[%clk 0:01:14.1]} 37. Nf4 {[%clk 0:00:08]} 37... Kf7 {[%clk 0:01:12.3]} 38.
Nxg6 {[%clk 0:00:08.5]} 38... hxg6 {[%clk 0:01:13.7]} 39. h7 {[%clk 0:00:10.1]}
39... Rh8 {[%clk 0:01:11.6]} 40. Rh6 {[%clk 0:00:09.9]} 40... Qf6 {[%clk
0:01:10.4]} 41. Qf4 {[%clk 0:00:10.3]} 41... Qd6 {[%clk 0:01:11.4]} 42. Qd2
{[%clk 0:00:10]} 42... Kg7 {[%clk 0:01:10.6]} 43. Qd4+ {[%clk 0:00:10.3]} 43...
Kxh6 {[%clk 0:01:08.5]} 44. Qxh8 {[%clk 0:00:11.1]} 44... Rxh7 {[%clk
0:01:08.7]} 45. Qd4 {[%clk 0:00:11.9]} 45... Re7 {[%clk 0:01:06.5]} 46. g3
{[%clk 0:00:12.1]} 46... Kh7 {[%clk 0:01:02.9]} 47. Kg2 {[%clk 0:00:13.3]} 47...
Kg8 {[%clk 0:01:03.3]} 48. Rh1 {[%clk 0:00:14.6]} 48... Re5 {[%clk 0:01:02]} 49.
Rd1 {[%clk 0:00:12.4]} 49... Re4 {[%clk 0:01:02.2]} 50. Qc3 {[%clk 0:00:10.7]}
50... Kf7 {[%clk 0:01:03.3]} 51. Qc8 {[%clk 0:00:11.1]} 51... Re7 {[%clk
0:01:01.3]} 52. Qc4 {[%clk 0:00:09.5]} 52... b5 {[%clk 0:01:00.3]} 53. Qd4
{[%clk 0:00:10.4]} 53... Re2 {[%clk 0:00:57.9]} 54. Rh1 {[%clk 0:00:09.8]} 54...
Re5 {[%clk 0:00:56.7]} 55. Rd1 {[%clk 0:00:08.8]} 55... b4 {[%clk 0:00:53.2]}
56. Qa7+ {[%clk 0:00:09.3]} 56... Kf6 {[%clk 0:00:52.2]} 57. Qd4 {[%clk
0:00:10.6]} 57... g5 {[%clk 0:00:49.5]} 58. Qc4 {[%clk 0:00:09.3]} 58... Re4
{[%clk 0:00:45.4]} 59. Qc8 {[%clk 0:00:07.5]} 59... Re7 {[%clk 0:00:45.6]} 60.
Qc4 {[%clk 0:00:08.4]} 60... f4 {[%clk 0:00:42.9]} 61. Qd4+ {[%clk 0:00:08.5]}
61... Kf7 {[%clk 0:00:44.3]} 62. gxf4 {[%clk 0:00:08.7]} 62... gxf4 {[%clk
0:00:45.1]} 63. Rh1 {[%clk 0:00:09.4]} 63... f3+ {[%clk 0:00:44.2]} 64. Kf1
{[%clk 0:00:10.6]} 64... Qe5 {[%clk 0:00:44.2]} 65. Rh7+ {[%clk 0:00:10.5]}
65... Kg6 {[%clk 0:00:45.2]} 66. Qd3+ {[%clk 0:00:09.8]} 66... Qe4 {[%clk
0:00:44.5]} 67. Qxe4+ {[%clk 0:00:07.4]} 67... Rxe4 {[%clk 0:00:44.7]} 68. Rc7
{[%clk 0:00:07]} 68... Rd4 {[%clk 0:00:45.8]} 69. Kg1 {[%clk 0:00:05.8]} 69...
Rxd5 {[%clk 0:00:35.9]} 70. Rc6+ {[%clk 0:00:06]} 70... Kg5 {[%clk 0:00:37.2]}
71. Rxa6 {[%clk 0:00:07.9]} 71... Rd1+ {[%clk 0:00:36.2]} 72. Kh2 {[%clk
0:00:09.1]} 72... Rf1 {[%clk 0:00:36.5]} 73. Ra5+ {[%clk 0:00:08]} 73... Kf4
{[%clk 0:00:36.8]} 74. Rb5 {[%clk 0:00:08.2]} 74... Rxf2+ {[%clk 0:00:37.8]} 75.
Kg1 {[%clk 0:00:09.6]} 75... Rxa2 {[%clk 0:00:37.4]} 76. Rxb4+ {[%clk 0:00:10]}
76... Kg3 {[%clk 0:00:39.3]} 0-1

[Event "*** Titled Tuesday 3|2 Blitz (Late)"]
[Site "Chess.com"]
[Date "2017.01.03"]
[Round "7"]
[White "Elshan1985"]
[Black "Caminator2000"]
[Result "1-0"]
[WhiteElo "2604"]
[BlackElo "2233"]
[TimeControl "180+2"]
[EndTime "18:19:11 PST"]
[Termination "Elshan1985 won by resignation"]

1. d4 {[%clk 0:03:02]} 1... Nf6 {[%clk 0:03:00.4]} 2. Nf3 {[%clk 0:03:03.2]}
2... e6 {[%clk 0:03:01]} 3. c4 {[%clk 0:03:03.6]} 3... c5 {[%clk 0:03:02.6]} 4.
g3 {[%clk 0:03:01.6]} 4... cxd4 {[%clk 0:02:53.3]} 5. Nxd4 {[%clk 0:03:02.3]}
5... Nc6 {[%clk 0:02:54.4]} 6. Bg2 {[%clk 0:03:02.6]} 6... Bc5 {[%clk
0:02:42.7]} 7. Nb3 {[%clk 0:03:03.1]} 7... Be7 {[%clk 0:02:43.6]} 8. Nc3 {[%clk
0:03:02.8]} 8... O-O {[%clk 0:02:43.8]} 9. O-O {[%clk 0:03:03.1]} 9... d6 {[%clk
0:02:41.2]} 10. Bf4 {[%clk 0:03:04]} 10... a6 {[%clk 0:02:26.8]} 11. Rc1 {[%clk
0:03:03.3]} 11... h6 {[%clk 0:02:21.6]} 12. Qd2 {[%clk 0:03:02.9]} 12... e5
{[%clk 0:02:18.7]} 13. Be3 {[%clk 0:03:02.6]} 13... Ng4 {[%clk 0:02:20]} 14. Nd5
{[%clk 0:03:02.1]} 14... Nxe3 {[%clk 0:02:19.4]} 15. Qxe3 {[%clk 0:03:03.3]}
15... Bg5 {[%clk 0:02:14.7]} 16. f4 {[%clk 0:03:03.8]} 16... exf4 {[%clk
0:02:15.8]} 17. gxf4 {[%clk 0:03:05.7]} 17... Re8 {[%clk 0:02:16.6]} 18. Qb6
{[%clk 0:02:59.9]} 18... Rxe2 {[%clk 0:01:52.6]} 19. fxg5 {[%clk 0:02:46.3]}
19... Qxg5 {[%clk 0:01:53.1]} 20. Rf2 {[%clk 0:02:47]} 20... Bg4 {[%clk
0:01:33]} 21. Rxe2 {[%clk 0:02:43.5]} 21... Bxe2 {[%clk 0:01:33.8]} 22. Qe3
{[%clk 0:02:44.6]} 1-0

[Event "*** Titled Tuesday 3|2 Blitz (Late)"]
[Site "Chess.com"]
[Date "2017.01.03"]
[Round "7"]
[White "sandromareco"]
[Black "FLchessplayer"]
[Result "1-0"]
[WhiteElo "2445"]
[BlackElo "2105"]
[TimeControl "180+2"]
[EndTime "18:21:01 PST"]
[Termination "sandromareco won by resignation"]

1. Nf3 {[%clk 0:03:01.9]} 1... d6 {[%clk 0:02:45.5]} 2. d4 {[%clk 0:03:01.5]}
2... g6 {[%clk 0:02:46.3]} 3. c4 {[%clk 0:03:02.2]} 3... Bg7 {[%clk 0:02:47.6]}
4. g3 {[%clk 0:03:03.4]} 4... c6 {[%clk 0:02:48.9]} 5. Bg2 {[%clk 0:03:04.6]}
5... Nd7 {[%clk 0:02:49.9]} 6. O-O {[%clk 0:03:05.5]} 6... Ngf6 {[%clk
0:02:50.6]} 7. Nc3 {[%clk 0:03:06.2]} 7... e5 {[%clk 0:02:51.6]} 8. e4 {[%clk
0:03:07]} 8... Qc7 {[%clk 0:02:51]} 9. h3 {[%clk 0:03:08]} 9... a6 {[%clk
0:02:52.1]} 10. Be3 {[%clk 0:03:08.7]} 10... h6 {[%clk 0:02:50.5]} 11. Rc1
{[%clk 0:03:08.8]} 11... O-O {[%clk 0:02:50.9]} 12. Qd2 {[%clk 0:03:09.5]} 12...
Kh7 {[%clk 0:02:52.1]} 13. Rfd1 {[%clk 0:03:07.7]} 13... Rd8 {[%clk 0:02:50.9]}
14. a3 {[%clk 0:03:06.1]} 14... exd4 {[%clk 0:02:49]} 15. Nxd4 {[%clk
0:03:06.6]} 15... Ne5 {[%clk 0:02:46.7]} 16. Qe2 {[%clk 0:03:06.8]} 16... c5
{[%clk 0:02:39.6]} 17. Nc2 {[%clk 0:03:02]} 17... Be6 {[%clk 0:02:37.8]} 18. b3
{[%clk 0:03:02.8]} 18... Rab8 {[%clk 0:02:37]} 19. f4 {[%clk 0:03:03.2]} 19...
Nc6 {[%clk 0:02:37.2]} 20. Nd5 {[%clk 0:03:04.3]} 20... Bxd5 {[%clk 0:02:36.4]}
21. cxd5 {[%clk 0:03:04.8]} 21... Ne7 {[%clk 0:02:33]} 22. b4 {[%clk 0:03:04.1]}
22... b6 {[%clk 0:02:32.8]} 23. Nd4 {[%clk 0:03:04]} 23... Qd7 {[%clk
0:02:30.9]} 24. Nb3 {[%clk 0:03:00.2]} 24... Rbc8 {[%clk 0:02:25.4]} 25. Qxa6
{[%clk 0:02:58.4]} 25... Ra8 {[%clk 0:02:21.7]} 26. Qc4 {[%clk 0:02:34.8]} 26...
Rxa3 {[%clk 0:02:21.4]} 27. bxc5 {[%clk 0:02:35.9]} 27... bxc5 {[%clk
0:02:21.7]} 28. Rb1 {[%clk 0:02:33.6]} 28... Ra4 {[%clk 0:02:07.5]} 29. Qc2
{[%clk 0:02:33.7]} 29... Rda8 {[%clk 0:02:05.8]} 30. e5 {[%clk 0:02:31.7]} 30...
Ne8 {[%clk 0:01:57.5]} 31. exd6 {[%clk 0:02:31.3]} 31... Qxd6 {[%clk 0:01:58.1]}
32. Bxc5 {[%clk 0:02:31.6]} 32... Qd7 {[%clk 0:01:53.7]} 33. d6 {[%clk
0:02:29.6]} 33... Nc6 {[%clk 0:01:53.7]} 34. Bb6 {[%clk 0:02:25]} 34... Rc8
{[%clk 0:01:43.4]} 35. Nc5 {[%clk 0:02:19.3]} 1-0

[Event "*** Titled Tuesday 3|2 Blitz (Late)"]
[Site "Chess.com"]
[Date "2017.01.03"]
[Round "7"]
[White "Kacparov"]
[Black "Divertissement"]
[Result "1-0"]
[WhiteElo "2591"]
[BlackElo "2443"]
[TimeControl "180+2"]
[EndTime "18:21:28 PST"]
[Termination "Kacparov won by checkmate"]

1. e4 {[%clk 0:03:01.9]} 1... c6 {[%clk 0:02:59.5]} 2. d4 {[%clk 0:03:01.3]}
2... d5 {[%clk 0:02:59.9]} 3. Nc3 {[%clk 0:03:02.9]} 3... dxe4 {[%clk
0:03:00.2]} 4. Nxe4 {[%clk 0:03:04.8]} 4... Bf5 {[%clk 0:03:00.9]} 5. Ng3 {[%clk
0:03:05.7]} 5... Bg6 {[%clk 0:03:02]} 6. Nh3 {[%clk 0:03:07.4]} 6... e6 {[%clk
0:03:02.5]} 7. Nf4 {[%clk 0:03:08.4]} 7... Bd6 {[%clk 0:03:03.7]} 8. c3 {[%clk
0:03:07.7]} 8... Qc7 {[%clk 0:03:04.7]} 9. Nxg6 {[%clk 0:03:04.4]} 9... hxg6
{[%clk 0:03:05.5]} 10. Ne4 {[%clk 0:03:04]} 10... Be7 {[%clk 0:03:04]} 11. g3
{[%clk 0:03:04.3]} 11... Nf6 {[%clk 0:03:01.2]} 12. Bf4 {[%clk 0:03:01.4]} 12...
Qd8 {[%clk 0:03:01.7]} 13. Bg2 {[%clk 0:02:59.9]} 13... Nxe4 {[%clk 0:02:53.9]}
14. Bxe4 {[%clk 0:03:01.8]} 14... Nd7 {[%clk 0:02:51]} 15. O-O {[%clk
0:03:02.3]} 15... Qb6 {[%clk 0:02:36.9]} 16. Qc2 {[%clk 0:03:01.7]} 16... Nf6
{[%clk 0:02:33.5]} 17. Bg2 {[%clk 0:03:01.3]} 17... Qb5 {[%clk 0:02:21.4]} 18.
a4 {[%clk 0:02:59.9]} 18... Qh5 {[%clk 0:02:18.8]} 19. h3 {[%clk 0:03:00.6]}
19... g5 {[%clk 0:02:12.9]} 20. Bd2 {[%clk 0:03:00.1]} 20... g4 {[%clk
0:02:08.6]} 21. h4 {[%clk 0:03:00.8]} 21... Nd5 {[%clk 0:02:08.6]} 22. Qb3
{[%clk 0:02:56.8]} 22... O-O-O {[%clk 0:01:48.9]} 23. c4 {[%clk 0:02:46.6]}
23... Nc7 {[%clk 0:01:44.1]} 24. d5 {[%clk 0:02:42.2]} 24... exd5 {[%clk
0:01:41.3]} 25. cxd5 {[%clk 0:02:42.5]} 25... Nxd5 {[%clk 0:01:33.2]} 26. Rfe1
{[%clk 0:02:43]} 26... Bf6 {[%clk 0:01:16.4]} 27. Rac1 {[%clk 0:02:40.6]} 27...
Rd6 {[%clk 0:00:45.7]} 28. Rc5 {[%clk 0:02:38.8]} 28... Rhd8 {[%clk 0:00:43.7]}
29. Bf4 {[%clk 0:02:37.8]} 29... R6d7 {[%clk 0:00:12]} 30. Rxc6+ {[%clk
0:02:32.6]} 30... bxc6 {[%clk 0:00:12]} 31. Qb8# {[%clk 0:02:32.8]} 1-0

[Event "*** Titled Tuesday 3|2 Blitz (Late)"]
[Site "Chess.com"]
[Date "2017.01.03"]
[Round "7"]
[White "AdrianaNikolova"]
[Black "Goala"]
[Result "0-1"]
[WhiteElo "2250"]
[BlackElo "2181"]
[TimeControl "180+2"]
[EndTime "18:22:30 PST"]
[Termination "Goala won by checkmate"]

1. e4 {[%clk 0:03:01.9]} 1... e6 {[%clk 0:03:00.4]} 2. d4 {[%clk 0:03:02.2]}
2... d5 {[%clk 0:03:00.2]} 3. Nd2 {[%clk 0:03:03.6]} 3... Nf6 {[%clk 0:02:58.5]}
4. e5 {[%clk 0:03:04.7]} 4... Nfd7 {[%clk 0:02:57.2]} 5. c3 {[%clk 0:03:06.6]}
5... c5 {[%clk 0:02:51.3]} 6. f4 {[%clk 0:03:08.5]} 6... Nc6 {[%clk 0:02:52.8]}
7. Ndf3 {[%clk 0:03:09.3]} 7... Qb6 {[%clk 0:02:50.1]} 8. a3 {[%clk 0:03:10.4]}
8... a5 {[%clk 0:02:45.6]} 9. b3 {[%clk 0:03:11.3]} 9... f6 {[%clk 0:02:38.6]}
10. Bd3 {[%clk 0:03:09.1]} 10... g5 {[%clk 0:02:37.7]} 11. fxg5 {[%clk
0:02:58.4]} 11... fxe5 {[%clk 0:02:37.6]} 12. Nxe5 {[%clk 0:02:58.2]} 12...
Ndxe5 {[%clk 0:02:38.7]} 13. dxe5 {[%clk 0:02:56.5]} 13... Nxe5 {[%clk
0:02:39.8]} 14. Qh5+ {[%clk 0:02:57.5]} 14... Kd8 {[%clk 0:02:36.8]} 15. Bc2
{[%clk 0:02:49.3]} 15... Bg7 {[%clk 0:02:24.5]} 16. Nf3 {[%clk 0:02:39.3]} 16...
Nxf3+ {[%clk 0:02:19.7]} 17. Qxf3 {[%clk 0:02:41.2]} 17... Rf8 {[%clk
0:02:16.5]} 18. Qg3 {[%clk 0:02:40.6]} 18... Bd7 {[%clk 0:02:02.1]} 19. Bd2
{[%clk 0:02:33.6]} 19... a4 {[%clk 0:01:57.1]} 20. b4 {[%clk 0:02:30.6]} 20...
cxb4 {[%clk 0:01:56.1]} 21. axb4 {[%clk 0:02:32.5]} 21... Bb5 {[%clk 0:01:45.1]}
22. Bxh7 {[%clk 0:02:26.4]} 22... a3 {[%clk 0:01:24.5]} 23. c4 {[%clk
0:02:17.3]} 23... Bxa1 {[%clk 0:00:32.3]} 24. cxb5 {[%clk 0:02:17.3]} 24... Bd4
{[%clk 0:00:32]} 25. Ke2 {[%clk 0:02:12.1]} 25... Rf2+ {[%clk 0:00:23.6]} 26.
Kd3 {[%clk 0:02:04]} 26... e5 {[%clk 0:00:21.2]} 27. g6 {[%clk 0:01:22]} 27...
Qxb5+ {[%clk 0:00:21.5]} 28. Kc2 {[%clk 0:01:22.7]} 28... Qc4+ {[%clk
0:00:22.4]} 29. Kd1 {[%clk 0:01:17.3]} 29... Qe2+ {[%clk 0:00:22.7]} 30. Kc1
{[%clk 0:01:18]} 30... Qxd2+ {[%clk 0:00:24.4]} 31. Kb1 {[%clk 0:01:19.2]} 31...
Qb2# {[%clk 0:00:26.1]} 0-1

[Event "*** Titled Tuesday 3|2 Blitz (Late)"]
[Site "Chess.com"]
[Date "2017.01.03"]
[Round "7"]
[White "MrReinberg"]
[Black "HouseOfDurin"]
[Result "1-0"]
[WhiteElo "2274"]
[BlackElo "1892"]
[TimeControl "180+2"]
[EndTime "18:22:40 PST"]
[Termination "MrReinberg won by resignation"]

1. e4 {[%clk 0:03:02]} 1... c5 {[%clk 0:03:00.6]} 2. Nc3 {[%clk 0:02:57.7]} 2...
Nc6 {[%clk 0:03:01.9]} 3. f4 {[%clk 0:02:58.4]} 3... e5 {[%clk 0:03:02.8]} 4.
Nf3 {[%clk 0:02:59.6]} 4... d6 {[%clk 0:03:01.4]} 5. Bc4 {[%clk 0:03:00.4]} 5...
Be7 {[%clk 0:02:52.9]} 6. O-O {[%clk 0:03:00.7]} 6... Nf6 {[%clk 0:02:43.9]} 7.
d3 {[%clk 0:03:00.7]} 7... exf4 {[%clk 0:02:38.8]} 8. Bxf4 {[%clk 0:03:00.5]}
8... O-O {[%clk 0:02:39.3]} 9. Qd2 {[%clk 0:02:58.4]} 9... Be6 {[%clk
0:02:14.8]} 10. Bb3 {[%clk 0:02:52.7]} 10... a6 {[%clk 0:01:29.7]} 11. Rae1
{[%clk 0:02:36.9]} 11... b5 {[%clk 0:01:15.8]} 12. Bd5 {[%clk 0:02:26.5]} 12...
Bxd5 {[%clk 0:00:59.8]} 13. Nxd5 {[%clk 0:02:23.1]} 13... Nxd5 {[%clk
0:01:00.3]} 14. exd5 {[%clk 0:02:25]} 14... Nb4 {[%clk 0:01:00.9]} 15. c4 {[%clk
0:02:23.2]} 15... Nxa2 {[%clk 0:00:53.6]} 16. Qf2 {[%clk 0:02:07.6]} 16... Bf6
{[%clk 0:00:48.3]} 17. Qg3 {[%clk 0:02:06.1]} 17... Nb4 {[%clk 0:00:17.4]} 18.
Nd2 {[%clk 0:02:06.8]} 18... bxc4 {[%clk 0:00:16.5]} 19. dxc4 {[%clk 0:02:06.8]}
19... Bd4+ {[%clk 0:00:17.7]} 20. Kh1 {[%clk 0:02:07.4]} 20... Nc2 {[%clk
0:00:18.2]} 21. Re4 {[%clk 0:02:00.1]} 21... Bxb2 {[%clk 0:00:12.6]} 22. Bxd6
{[%clk 0:01:59.1]} 22... Re8 {[%clk 0:00:14]} 23. Rxe8+ {[%clk 0:01:46.4]} 23...
Qxe8 {[%clk 0:00:15.9]} 24. Bxc5 {[%clk 0:01:47.9]} 24... g6 {[%clk 0:00:13]}
25. Qf3 {[%clk 0:01:44.6]} 25... Bg7 {[%clk 0:00:12.4]} 26. d6 {[%clk
0:01:43.8]} 26... Rc8 {[%clk 0:00:13.7]} 27. Bb6 {[%clk 0:01:38.1]} 27... Qc6
{[%clk 0:00:13.7]} 28. Qxc6 {[%clk 0:01:37.1]} 28... Rxc6 {[%clk 0:00:15.6]} 29.
d7 {[%clk 0:01:38.3]} 29... Rd6 {[%clk 0:00:15.3]} 30. d8=Q+ {[%clk 0:01:38.1]}
30... Rxd8 {[%clk 0:00:16.9]} 31. Bxd8 {[%clk 0:01:39.6]} 31... Ne3 {[%clk
0:00:16.4]} 32. Re1 {[%clk 0:01:34.5]} 32... Nf5 {[%clk 0:00:13.7]} 33. c5
{[%clk 0:01:33]} 33... Bf8 {[%clk 0:00:14]} 34. c6 {[%clk 0:01:33.9]} 34... Bd6
{[%clk 0:00:13.9]} 35. c7 {[%clk 0:01:34.3]} 1-0